bitfinex/quotes_SOLUSD_20240809
["timestamp","ask_amount","ask_price","bid_price","bid_amount"]
[1723183252821,28.71318147,157.35,157.3,15.893]
[1723183253036,27.18,157.35,157.3,15.893]
[1723183253238,27.18,157.35,157.32,15.8902]
[1723183253442,15.5137,157.42,157.3,31.7845]
[1723183253443,27.18,157.37,157.3,31.7845]
[1723183253751,27.18,157.39,157.35,6.3551]
[1723183253913,20.0,157.38,157.34,22.2437]
[1723183254317,27.18,157.39,157.34,15.8881]
[1723183254668,27.18,157.41,157.38,6.354]
[1723183254831,27.18,157.43,157.36,15.8862]
[1723183255442,27.18,157.43,157.4,6.3532]
[1723183256116,27.18,157.43,157.39,6.3536]
[1723183256717,27.18,157.45,157.38,15.8842]
[1723183257026,20.0,157.44,157.38,15.8842]
[1723183257946,20.0,157.44,157.41,6.3524]
[1723183258143,20.0,157.44,157.39,6.3532]
[1723183258367,20.0,157.44,157.4,6.3531]
[1723183258725,27.18,157.45,157.4,6.3531]
[1723183258930,33.5313,157.45,157.4,6.3531]
[1723183260151,27.18,157.43,157.38,15.8842]
[1723183260354,27.18,157.43,157.38,22.2381]
[1723183262340,28.71318147,157.43,157.38,22.2381]
[1723183262541,27.18,157.43,157.39,6.3534]
[1723183265056,27.18,157.43,157.41,15.8817]
[1723183265551,27.18,157.45,157.41,15.8817]
[1723183265752,27.18,157.43,157.39,6.3535]
[1723183266260,27.18,157.43,157.38,15.8849]
[1723183266449,27.18,157.45,157.41,15.8819]
[1723183266639,27.18,157.45,157.42,6.352]
[1723183266846,21.8145,157.5,157.43,15.8791]
[1723183267059,27.18,157.47,157.43,17.14948601]
[1723183267270,27.18,157.47,157.43,15.8791]
[1723183267632,27.18,157.45,157.39,30.906]
[1723183267832,33.5312,157.45,157.39,37.2592]
[1723183268138,27.18,157.43,157.39,15.8832]
[1723183268352,33.532,157.43,157.39,15.8832]
[1723183268556,27.18,157.43,157.37,6.3544]
[1723183268755,27.18,157.41,157.38,6.3539]
[1723183269138,27.18,157.41,157.37,6.3544]
[1723183269446,27.18,157.39,157.33,15.89]
[1723183269757,27.18,157.37,157.33,15.89]
[1723183270473,27.18,157.37,157.33,22.2457]
[1723183271278,27.18,157.37,157.33,15.89]
[1723183271478,27.18,157.39,157.35,15.8872]
[1723183271759,27.18,157.39,157.38,6.354]
[1723183271963,27.18,157.39,157.35,15.8872]
[1723183272149,27.18,157.39,157.37,6.3544]
[1723183272545,27.18,157.39,157.38,6.354]
[1723183273247,27.18,157.39,157.37,15.8852]
[1723183273840,16.2545,157.43,157.37,15.8852]
[1723183274049,0.63544513,157.38,157.37,22.2393]
[1723183274244,27.81544513,157.38,157.33,15.8893]
[1723183274452,27.81544513,157.38,157.34,6.3555]
[1723183275451,27.18,157.36,157.33,22.2453]
[1723183276167,27.18,157.36,157.34,6.3556]
[1723183276348,27.18,157.36,157.35,6.3552]
[1723183277147,27.18,157.36,157.33,15.8893]
[1723183277456,27.18,157.34,157.31,6.3568]
[1723183278050,27.18,157.34,157.3,6.5091]
[1723183278476,27.18,157.34,157.32,6.3564]
[1723183278676,27.18,157.34,157.3,6.5091]
[1723183278840,27.18,157.34,157.29,15.8932]
[1723183279043,27.18,157.34,157.32,15.8911]
[1723183279277,27.18,157.34,157.33,6.356]
[1723183279580,27.18,157.36,157.34,6.3555]
[1723183279867,27.18,157.36,157.32,22.2471]
[1723183280572,27.18,157.34,157.32,22.2471]
[1723183281271,27.18,157.34,157.28,15.8942]
[1723183281454,27.18,157.32,157.28,15.8942]
[1723183282242,27.18,157.3,157.28,15.8942]
[1723183282753,27.18,157.3,157.26,6.3588]
[1723183283060,1.53318147,157.35,157.27,6.3584]
[1723183283061,27.18,157.28,157.27,6.3584]
[1723183283249,27.18,157.3,157.29,6.3575]
[1723183283767,27.18,157.3,157.27,22.2546]
[1723183284473,27.18,157.3,157.28,6.3579]
[1723183284772,27.18,157.3,157.27,22.2546]
[1723183284973,27.18,157.3,157.27,15.8962]
[1723183285147,27.18,157.28,157.24,6.3596]
[1723183285349,27.18,157.26,157.23,15.8993]
[1723183286158,27.18,157.26,157.25,6.3593]
[1723183286956,27.18,157.26,157.24,6.3596]
[1723183287276,27.18,157.26,157.18,80.92633951]
[1723183287277,27.18,157.26,157.2,6.3611]
[1723183287492,27.18,157.22,157.18,28.4433]
[1723183287979,27.18,157.22,157.19,6.3615]
[1723183288683,27.18,157.22,157.18,15.9046]
[1723183288984,27.18,157.22,157.19,6.3616]
[1723183289288,27.18,157.2,157.18,22.2667]
[1723183289662,27.18,157.2,157.18,15.9046]
[1723183289861,27.18,157.2,157.14,16.1129]
[1723183289862,6.3618,157.19,157.14,15.9083]
[1723183290181,27.18,157.17,157.15,6.3633]
[1723183290376,27.18,157.17,157.14,22.2718]
[1723183290755,27.18,157.17,157.15,6.3631]
[1723183290979,27.18,157.17,157.14,15.9083]
[1723183291274,27.18,157.17,157.16,6.3629]
[1723183291487,27.18,157.17,157.15,6.3632]
[1723183291861,27.18,157.17,157.14,22.272]
[1723183292081,27.18,157.17,157.12,6.3642]
[1723183292391,27.18,157.17,157.14,6.3636]
[1723183293987,27.18,157.15,157.13,15.9103]
[1723183294158,27.81544513,157.15,157.09,15.9143]
[1723183294359,27.18,157.13,157.09,15.9143]
[1723183294690,27.18,157.13,157.1,6.365]
[1723183295083,1.53318147,157.12,157.09,15.9143]
[1723183295252,1.53318147,157.12,157.09,22.2799]
[1723183295452,27.18,157.11,157.09,22.2799]
[1723183295675,27.18,157.11,157.09,15.9143]
[1723183296295,27.18,157.11,157.09,22.28]
[1723183297384,27.18,157.11,157.1,6.3653]
[1723183297688,27.18,157.11,157.09,22.28]
[1723183299592,33.5453,157.11,157.06,15.9174]
[1723183299886,27.18,157.12,157.06,22.2843]
[1723183299887,27.18,157.07,157.06,22.2843]
[1723183300088,27.18,157.09,157.06,15.9174]
[1723183300290,27.18,157.09,157.08,6.3661]
[1723183300494,27.18,157.09,157.06,22.2843]
[1723183300803,27.18,157.07,157.06,15.9174]
[1723183300956,27.18,157.07,157.05,0.8107353]
[1723183301563,2.1686266,157.15,157.05,16.7289353]
[1723183301564,27.18,157.09,157.05,16.7289353]
[1723183301764,27.18,157.09,157.06,6.3669]
[1723183301965,27.18,157.07,157.06,6.3669]
[1723183302272,27.18,157.07,157.05,0.8107353]
[1723183304171,28.71318147,157.07,157.05,0.8107353]
[1723183304575,27.18,157.07,157.05,0.8107353]
[1723183305682,27.18,157.07,157.05,7.1778353]
[1723183306981,27.18,157.07,157.05,0.8107353]
[1723183307501,27.18,157.07,157.05,16.7291353]
[1723183308495,27.18,157.06,157.05,0.8107353]
[1723183312894,55.08008147,157.06,157.05,0.8107353]
[1723183313577,47.18,157.06,157.05,0.8107353]
[1723183314092,47.81544513,157.06,157.05,0.8107353]
[1723183314393,54.18234513,157.06,157.05,0.8107353]
[1723183317576,55.7155266,157.06,157.05,0.8107353]
[1723183317781,55.7155266,157.06,156.96,22.1784]
[1723183317782,76.5286266,157.06,156.96,22.1784]
[1723183317983,27.18,157.0,156.96,22.1784]
[1723183318485,27.18,157.02,156.98,15.9245]
[1723183318802,27.18,157.02,157.01,6.369]
[1723183319105,27.18,157.02,157.0,6.3692]
[1723183319694,27.18,157.04,157.01,6.3689]
[1723183319894,27.18,157.04,157.0,6.3693]
[1723183320406,27.18,157.02,157.0,6.3693]
[1723183320809,27.18,157.03,157.01,6.3689]
[1723183321106,27.18,157.03,157.0,6.3693]
[1723183321311,27.18,157.03,156.99,6.3697]
[1723183321510,27.18,157.03,157.0,6.3692]
[1723183322229,27.18,157.03,156.99,6.3697]
[1723183322419,27.18,157.03,157.0,6.3693]
[1723183322579,27.18,157.03,157.0,6.3692]
[1723183323288,1.53318147,157.02,156.99,6.3698]
[1723183323490,27.18,157.03,156.98,15.9245]
[1723183323491,27.18,157.03,157.0,6.3691]
[1723183324529,27.18,157.05,157.03,6.368]
[1723183324731,0.63544513,157.06,157.02,15.9206]
[1723183324894,0.63544513,157.06,156.96,38.106]
[1723183324895,27.18,157.03,157.0,6.3693]
[1723183325206,27.18,157.03,156.99,22.294]
[1723183325409,33.5482,157.03,156.98,6.3702]
[1723183325709,27.18,157.03,156.99,6.3697]
[1723183326606,27.18,157.03,156.96,6.2518]
[1723183326813,27.18,157.03,157.0,6.3693]
[1723183327114,27.18,157.03,156.99,6.3698]
[1723183327307,27.18,157.01,156.98,15.9246]
[1723183328516,27.18,157.01,157.0,6.3694]
[1723183328706,27.18,157.03,157.0,6.3694]
[1723183328908,27.18,157.01,156.98,15.9246]
[1723183329109,27.18,157.01,156.91,27.18]
[1723183329110,27.18,156.99,156.94,15.9286]
[1723183329489,27.18,156.99,156.96,6.3709]
[1723183330099,27.18,156.99,156.94,15.9286]
[1723183330419,27.18,156.99,156.92,37.9397]
[1723183330420,27.18,156.99,156.98,6.3702]
[1723183331418,27.18,157.01,156.98,6.3702]
[1723183331789,33.549,157.01,156.96,22.2976]
[1723183331991,27.18,156.99,156.96,22.2976]
[1723183332189,27.18,156.99,156.96,15.9268]
[1723183333304,27.18,156.99,156.97,6.3706]
[1723183333615,27.18,157.01,156.97,6.3706]
[1723183334010,0.63544513,156.98,156.97,6.3706]
[1723183335817,0.63544513,156.98,156.95,6.3714]
[1723183337008,0.63544513,156.98,156.96,15.9276]
[1723183337260,0.63544513,156.98,156.96,22.2982]
[1723183337711,0.63544513,156.98,156.97,6.3706]
[1723183338213,0.63544513,156.98,156.97,49.6147]
[1723183338413,0.63544513,156.98,156.97,101.216]
[1723183338621,0.63544513,156.98,156.97,122.48959042]
[1723183339118,27.18,157.08,157.02,15.9212]
[1723183339421,33.5453,157.1,157.05,6.3673]
[1723183339600,27.18,157.1,157.05,6.3673]
[1723183339805,27.18,157.1,157.05,7.64063107]
[1723183340336,27.18,157.1,157.04,38.8153]
[1723183340498,1.53318147,157.09,157.04,45.1827]
[1723183340824,7.89908147,157.09,157.04,45.1827]
[1723183341024,1.53318147,157.09,157.04,45.1827]
[1723183341220,33.5454,157.1,157.04,45.1827]
[1723183341528,33.5454,157.1,157.05,6.3672]
[1723183342406,27.18,157.1,157.07,6.3664]
[1723183342824,27.18,157.1,157.06,6.3669]
[1723183343219,27.18,157.1,157.04,45.1827]
[1723183343524,27.18,157.1,157.05,6.3673]
[1723183343823,27.18,157.1,157.06,6.3669]
[1723183344751,33.5442,157.13,157.08,6.3661]
[1723183344921,22.0945,157.19,157.14,6.3637]
[1723183345128,33.5422,157.18,157.13,6.364]
[1723183345429,15.7326,157.19,157.12,15.9104]
[1723183345430,27.18,157.16,157.12,15.9104]
[1723183345722,1.53318147,157.15,157.12,15.9104]
[1723183345932,27.18,157.16,157.13,6.364]
[1723183346134,27.18,157.16,157.12,15.9104]
[1723183346318,27.18,157.16,157.15,6.3633]
[1723183346507,27.18,157.16,157.14,6.3636]
[1723183346829,27.18,157.2,157.15,15.9083]
[1723183347005,27.18,157.22,157.15,15.9083]
[1723183347329,42.8038,157.24,157.17,15.9053]
[1723183347502,27.18,157.26,157.19,27.18]
[1723183347711,27.18,157.27,157.21,6.3605]
[1723183347911,27.18,157.27,157.22,6.3602]
[1723183348830,33.5382,157.28,157.22,6.3602]
[1723183349025,27.18,157.26,157.22,6.3602]
[1723183349708,47.18,157.27,157.22,6.3602]
[1723183350206,27.18,157.26,157.22,6.3602]
[1723183351205,1.53318147,157.26,157.22,6.3602]
[1723183351428,27.18,157.26,157.22,6.3602]
[1723183351899,20.0,157.27,157.22,15.9002]
[1723183352099,20.0,157.27,157.23,6.36]
[1723183352731,53.5384,157.27,157.22,22.2606]
[1723183352924,47.18,157.27,157.22,22.2606]
[1723183353113,27.18,157.26,157.22,22.2606]
[1723183353505,47.18,157.27,157.22,22.2606]
[1723183353941,27.18,157.26,157.22,22.2606]
[1723183354231,0.6360514,157.23,157.19,27.18]
[1723183354432,0.6360514,157.23,157.2,45.0]
[1723183355127,0.6360514,157.23,157.22,6.3604]
[1723183356036,0.6360514,157.23,157.21,22.263]
[1723183356332,0.6360514,157.23,157.21,15.9022]
[1723183356726,0.6360514,157.23,157.22,6.3605]
[1723183356932,0.6360514,157.23,157.22,34.81243566]
[1723183357311,0.6360514,157.23,157.22,79.81243566]
[1723183357616,0.6360514,157.23,157.22,51.3605]
[1723183358223,0.6360514,157.23,157.22,6.3605]
[1723183359710,0.6360514,157.23,157.22,51.3605]
[1723183359934,0.6360514,157.23,157.22,6.3605]
[1723183360642,0.6360514,157.23,157.22,33.5405]
[1723183360961,0.6360514,157.23,157.22,39.617]
[1723183361437,0.6360514,157.23,157.22,104.617]
[1723183364338,5.14e-05,157.23,157.22,104.617]
[1723183364733,27.18,157.33,157.28,15.8944]
[1723183365439,27.18,157.33,157.29,6.3576]
[1723183366027,6.3553,157.35,157.29,6.3576]
[1723183366355,27.18,157.33,157.31,6.3565]
[1723183366944,15.0587,157.37,157.3,15.8923]
[1723183367139,21.4131,157.37,157.3,15.8923]
[1723183367352,27.18,157.34,157.3,15.8923]
[1723183367750,27.18,157.36,157.3,15.8923]
[1723183367958,27.18,157.38,157.35,6.3551]
[1723183368833,27.18,157.38,157.34,6.3556]
[1723183369040,27.18,157.39,157.35,15.888]
[1723183369431,27.18,157.39,157.35,22.2432]
[1723183370444,27.18,157.38,157.35,22.2432]
[1723183371029,27.18,157.39,157.35,22.2432]
[1723183371236,0.8107353,157.44,157.37,15.8851]
[1723183371428,27.18,157.39,157.37,15.8851]
[1723183371640,27.18,157.38,157.36,6.3548]
[1723183371948,27.18,157.38,157.35,6.3552]
[1723183372151,6.3524,157.42,157.36,6.3547]
[1723183372342,20.0,157.41,157.37,6.3544]
[1723183372541,27.18,157.4,157.36,6.3547]
[1723183372739,27.18,157.39,157.36,6.3547]
[1723183373123,27.18,157.4,157.37,6.3544]
[1723183373330,27.18,157.42,157.38,6.3539]
[1723183374128,0.63540476,157.39,157.38,6.3539]
[1723183374337,0.63540476,157.39,157.38,51.3539]
[1723183375632,0.63540476,157.39,157.37,15.886]
[1723183375837,0.63540476,157.39,157.38,6.354]
[1723183377153,0.63540476,157.39,157.38,51.354]
[1723183380264,0.63540476,157.39,157.38,79.80444098]
[1723183380428,0.63540476,157.39,157.38,78.534]
[1723183380633,0.63540476,157.39,157.38,98.534]
[1723183380958,0.8107353,157.44,157.43,28.8011]
[1723183381654,0.8107353,157.44,157.43,73.8011]
[1723183384049,0.8107353,157.44,157.43,100.9811]
[1723183384366,0.8107353,157.44,157.43,120.9811]
[1723183384528,0.8107353,157.44,157.43,93.8011]
[1723183385160,0.8107353,157.44,157.43,120.9811]
[1723183385663,0.8107353,157.44,157.43,93.8011]
[1723183386362,0.8107353,157.44,157.43,120.9811]
[1723183386567,0.8107353,157.44,157.43,73.8011]
[1723183386737,0.8107353,157.44,157.43,93.8011]
[1723183386935,0.8107353,157.44,157.43,120.9811]
[1723183387330,16.5407,157.57,157.43,127.19894405]
[1723183387584,27.18,157.56,157.51,15.8718]
[1723183387864,27.18,157.52,157.49,6.3495]
[1723183388088,16.5407,157.57,157.47,15.8753]
[1723183388357,22.8874,157.57,157.5,6.3491]
[1723183388567,27.18,157.55,157.52,6.3482]
[1723183388871,27.18,157.55,157.5,15.8729]
[1723183388872,27.18,157.55,157.5,22.5381]
[1723183389165,6.3466,157.57,157.51,45.0]
[1723183389367,27.18,157.55,157.53,15.8699]
[1723183389551,27.18,157.56,157.53,15.8699]
[1723183389856,27.18,157.54,157.53,15.8699]
[1723183390167,27.18,157.55,157.53,22.2178]
[1723183391157,27.18,157.55,157.54,6.3475]
[1723183391350,27.18,157.55,157.53,15.8699]
[1723183391854,27.18,157.55,157.53,22.2177]
[1723183392057,27.18,157.55,157.54,6.3475]
[1723183392936,7.87878147,157.59,157.53,15.8699]
[1723183392937,27.18,157.59,157.53,31.8057]
[1723183393265,27.18,157.59,157.56,6.3467]
[1723183393451,27.18,157.59,157.56,15.8669]
[1723183394081,27.18,157.59,157.58,6.3459]
[1723183394249,27.18,157.59,157.56,15.8669]
[1723183394575,27.18,157.58,157.56,15.8669]
[1723183394876,27.18,157.58,157.56,22.2136]
[1723183395374,27.18,157.58,157.57,6.3463]
[1723183395777,27.18,157.58,157.56,22.2136]
[1723183396277,27.18,157.57,157.54,6.3472]
[1723183396504,2.34391677,157.6,157.52,15.8702]
[1723183396505,27.18,157.55,157.52,15.8702]
[1723183396777,6.3461,157.58,157.41,20.0]
[1723183396778,27.18,157.53,157.48,15.8741]
[1723183396986,27.18,157.51,157.48,15.8741]
[1723183397152,27.18,157.51,157.49,6.3495]
[1723183397473,27.18,157.51,157.48,22.224]
[1723183397771,27.18,157.49,157.48,15.8741]
[1723183398156,27.18,157.49,157.44,15.8783]
[1723183398482,27.18,157.45,157.42,6.2034]
[1723183398677,27.18,157.45,157.43,6.3519]
[1723183398976,27.18,157.45,157.44,6.3516]
[1723183399178,31.7178,157.64,157.44,6.3516]
[1723183399179,31.7178,157.64,157.44,27.18]
[1723183399384,27.18,157.52,157.5,6.349]
[1723183399686,27.18,157.52,157.51,6.3487]
[1723183400157,27.18,157.54,157.52,6.3482]
[1723183400774,27.18,157.55,157.53,6.3479]
[1723183401089,27.18,157.55,157.5,15.8728]
[1723183401090,27.18,157.55,157.54,6.3475]
[1723183401585,27.18,157.56,157.53,22.2177]
[1723183402172,0.8107353,157.6,157.56,15.8664]
[1723183402382,27.9907353,157.6,157.58,6.3459]
[1723183402583,27.9907353,157.6,157.57,6.3463]
[1723183402973,27.18,157.59,157.56,15.8664]
[1723183403276,27.18,157.59,157.57,6.3463]
[1723183403792,34.85,157.58,157.55,6.3471]
[1723183404092,35.6607353,157.6,157.55,15.8677]
[1723183404255,35.6607353,157.6,157.57,6.3462]
[1723183404577,35.6607353,157.6,157.58,6.3459]
[1723183404808,0.8107353,157.6,157.59,6.3455]
[1723183407793,0.8107353,157.6,157.59,51.3455]
[1723183408085,0.8107353,157.6,157.59,6.3455]
[1723183409076,0.8107353,157.6,157.59,57.8218]
[1723183409587,0.8107353,157.6,157.59,77.8218]
[1723183414195,1.44529334,157.6,157.59,77.8218]
[1723183415480,1.44529334,157.6,157.59,32.8218]
[1723183415685,1.44529334,157.6,157.59,6.3455]
[1723183417374,1.44529334,157.6,157.59,51.3455]
[1723183417893,1.44529334,157.6,157.59,6.3455]
[1723183418085,1.44529334,157.6,157.59,51.3455]
[1723183418282,1.44529334,157.6,157.59,6.3455]
[1723183418497,1.44529334,157.6,157.58,22.2103]
[1723183418879,36.29529334,157.6,157.57,6.3463]
[1723183419208,36.29529334,157.6,157.58,6.3458]
[1723183419395,36.29529334,157.6,157.59,6.3455]
[1723183419596,36.29529334,157.6,157.58,6.3459]
[1723183419815,36.29529334,157.6,157.55,15.8679]
[1723183419816,42.64059334,157.6,157.55,15.8679]
[1723183420000,34.85,157.57,157.55,15.8679]
[1723183420722,34.85,157.57,157.53,6.3479]
[1723183420882,34.85,157.55,157.53,6.3479]
[1723183421080,34.85,157.55,157.52,15.8709]
[1723183421408,34.85,157.53,157.48,15.874]
[1723183421609,34.85,157.53,157.51,6.3487]
[1723183422786,34.85,157.53,157.5,6.3491]
[1723183423009,34.85,157.51,157.5,6.3491]
[1723183423299,34.85,157.51,157.48,15.874]
[1723183423478,34.85,157.49,157.48,15.874]
[1723183423675,34.85,157.49,157.47,6.35]
[1723183423676,27.15,157.49,157.45,6.351]
[1723183423877,1.53318147,157.48,157.45,6.351]
[1723183424112,33.4987,157.52,157.46,6.3508]
[1723183424317,27.15,157.52,157.47,15.8757]
[1723183424495,27.15,157.48,157.47,22.2261]
[1723183425323,27.15,157.48,157.43,15.8793]
[1723183425485,1.53318147,157.49,157.44,6.3514]
[1723183425820,27.15,157.45,157.44,6.3514]
[1723183426401,27.15,157.45,157.43,15.8793]
[1723183426713,27.15,157.44,157.43,15.8793]
[1723183427396,27.15,157.44,157.43,22.2313]
[1723183428117,27.15,157.45,157.43,22.2313]
[1723183428323,27.15,157.44,157.39,47.6509]
[1723183428617,27.15,157.42,157.39,15.8832]
[1723183428807,27.15,157.4,157.39,15.8832]
[1723183428990,27.15,157.4,157.39,22.2364]
[1723183429511,1.53318147,157.48,157.44,6.3514]
[1723183429718,27.15,157.45,157.43,6.3516]
[1723183429898,27.15,157.44,157.43,6.3516]
[1723183430301,27.15,157.44,157.35,44.66253844]
[1723183430501,27.15,157.39,157.38,22.2387]
[1723183430922,27.15,157.39,157.38,15.8847]
[1723183431094,27.15,157.41,157.38,15.8847]
[1723183431298,27.15,157.41,157.4,6.3531]
[1723183431716,21.53318147,157.48,157.41,15.382]
[1723183431717,27.15,157.43,157.41,15.382]
[1723183431886,27.15,157.44,157.41,15.382]
[1723183432083,27.15,157.43,157.41,21.7344]
[1723183432386,27.15,157.42,157.41,15.382]
[1723183432597,27.15,157.42,157.39,6.3536]
[1723183432895,27.15,157.41,157.39,6.3536]
[1723183433415,6.3512,157.45,157.39,6.3536]
[1723183433623,27.15,157.42,157.4,6.3531]
[1723183434316,0.63455804,157.41,157.4,6.3531]
[1723183434687,0.63455804,157.41,157.38,6.3536]
[1723183434886,27.15,157.4,157.37,22.2396]
[1723183435221,27.15,157.4,157.39,6.3536]
[1723183435719,27.78455804,157.41,157.39,6.3536]
[1723183435892,27.78455804,157.41,157.38,6.354]
[1723183436411,27.78455804,157.41,157.39,6.3535]
[1723183437595,0.63455804,157.41,157.4,22.2363]
[1723183438094,0.63455804,157.41,157.4,67.2363]
[1723183438421,0.63455804,157.41,157.4,22.2363]
[1723183440314,0.63455804,157.41,157.4,67.2363]
[1723183442099,0.63455804,157.41,157.4,101.82709552]
[1723183442319,27.15,157.5,157.48,6.3499]
[1723183443016,27.15,157.52,157.49,6.3495]
[1723183443196,27.15,157.51,157.49,6.3495]
[1723183443797,27.15,157.53,157.5,6.3491]
[1723183444203,27.15,157.52,157.49,6.3495]
[1723183444421,27.15,157.51,157.48,6.3499]
[1723183444606,27.15,157.5,157.46,15.8769]
[1723183444796,27.15,157.5,157.47,45.0]
[1723183445000,27.15,157.51,157.48,6.3499]
[1723183445402,27.15,157.5,157.48,6.3499]
[1723183445912,27.15,157.51,157.48,6.3499]
[1723183446922,27.15,157.51,157.47,45.0]
[1723183447108,27.15,157.51,157.49,6.3495]
[1723183447305,27.15,157.5,157.46,15.8769]
[1723183447526,27.15,157.49,157.46,15.8769]
[1723183448131,27.15,157.49,157.46,22.2276]
[1723183448316,27.15,157.49,157.46,15.8769]
[1723183448631,27.15,157.5,157.46,15.8769]
[1723183448804,27.15,157.51,157.48,6.3496]
[1723183449805,27.15,157.5,157.48,6.3496]
[1723183450137,27.15,157.49,157.48,6.3496]
[1723183450639,27.15,157.5,157.48,6.3496]
[1723183451718,27.15,157.49,157.46,15.8769]
[1723183452039,27.15,157.48,157.46,15.8769]
[1723183452511,27.15,157.47,157.43,15.88]
[1723183452710,27.15,157.44,157.41,21.7367]
[1723183453136,27.15,157.44,157.42,6.3523]
[1723183453437,6.35,157.48,157.43,6.352]
[1723183453731,27.15,157.45,157.43,6.352]
[1723183454046,27.15,157.44,157.4,6.1706]
[1723183454207,27.15,157.43,157.4,6.1706]
[1723183454639,27.15,157.42,157.4,6.1706]
[1723183454912,6.3512,157.45,157.4,12.5238]
[1723183455214,27.15,157.41,157.4,12.5238]
[1723183455526,27.15,157.41,157.4,57.5238]
[1723183455911,27.15,157.41,157.4,12.5238]
[1723183456102,27.15,157.42,157.4,12.5238]
[1723183456308,6.3508,157.47,157.41,6.3528]
[1723183456509,27.15,157.42,157.41,6.3528]
[1723183457505,27.15,157.42,157.4,12.5236]
[1723183457808,27.15,157.41,157.4,12.5236]
[1723183458840,27.15,157.41,157.39,6.3536]
[1723183459349,7.88438147,157.45,157.4,6.3532]
[1723183459547,27.15,157.42,157.4,6.3532]
[1723183459710,27.15,157.41,157.38,22.2378]
[1723183460442,33.502,157.44,157.36,6.0785]
[1723183460443,27.15,157.39,157.36,12.433]
[1723183460638,27.15,157.39,157.37,45.0]
[1723183461519,27.15,157.38,157.34,22.2437]
[1723183461728,1.53318147,157.43,157.34,22.2437]
[1723183461729,27.15,157.36,157.34,22.2437]
[1723183462223,27.15,157.36,157.32,6.6408]
[1723183462436,27.15,157.36,157.29,16.2103]
[1723183462437,27.15,157.33,157.29,16.2103]
[1723183462617,27.15,157.36,157.3,6.3571]
[1723183462618,27.15,157.31,157.3,6.3571]
[1723183465523,27.15,157.31,157.29,6.3576]
[1723183466312,27.15,157.31,157.27,22.2534]
[1723183466512,27.15,157.28,157.27,22.2534]
[1723183466717,27.15,157.28,157.27,15.8953]
[1723183468215,27.15,157.28,157.24,28.917]
[1723183468421,27.15,157.26,157.25,6.3591]
[1723183468821,1.53318147,157.31,157.25,6.3591]
[1723183469049,1.53318147,157.31,157.26,6.3584]
[1723183469345,20.0,157.32,157.27,6.3584]
[1723183469541,27.15,157.29,157.27,6.3584]
[1723183470451,27.15,157.29,157.28,6.358]
[1723183471127,27.15,157.29,157.27,15.896]
[1723183471331,27.15,157.29,157.27,22.2543]
[1723183472550,27.15,157.28,157.27,22.2544]
[1723183472731,27.15,157.32,157.3,15.8926]
[1723183472933,27.15,157.32,157.31,6.3565]
[1723183473130,27.15,157.32,157.3,15.8926]
[1723183473448,27.15,157.36,157.29,6.3576]
[1723183473449,27.15,157.31,157.29,6.3576]